[Event "Irish Championship 2026"]
[Site "Talbot Hotel Stillorgan, Co.Dublin, IE"]
[Date "2026.08.02"]
[Round "2"]
[White "Nichenametla V, Advaith"]
[Black "Mulukutla, Ayaansh"]
[Result "1/2-1/2"]
[Board "76"]
[TimeControl "40/5400+30:1800+30"]
[WhiteFideId "2516896"]
[BlackFideId "33391998"]
[WhiteElo "1943"]
[BlackElo "1839"]
[WhiteClock "0:25:09"]
[BlackClock "0:25:25"]
[Variant "Standard"]
[EndDate "2026.08.02"]
[EndTime "18:04:37"]

1. e4 {[%clk 1:30:45]}  c6 {[%clk 1:30:53]} 2. d4 {[%clk 1:31:09]}  d5 {[%clk 1:31:19]} 3. Nd2 {[%clk 1:31:20]}  dxe4 {[%clk 1:31:12]}
4. Nxe4 {[%clk 1:31:44]}  e6 {[%clk 1:31:28]} 5. Nf3 {[%clk 1:24:26]}  Nd7 {[%clk 1:29:35]} 6. Bf4 {[%clk 1:23:53]}  Ndf6 {[%clk 1:28:22]}
7. Bd3 {[%clk 1:12:55]}  Nxe4 {[%clk 1:24:39]} 8. Bxe4 {[%clk 1:12:55]}  Nf6 {[%clk 1:24:13]} 9. Bd3 {[%clk 1:13:22]}  Be7 {[%clk 1:19:27]}
10. Qe2 {[%clk 1:05:19]}  Nd5 {[%clk 1:15:10]} 11. Bd2 {[%clk 1:03:34]}  Qb6 {[%clk 1:02:28]} 12. Rb1 {[%clk 0:42:21]}  Bf6 {[%clk 0:56:40]}
13. c3 {[%clk 0:41:34]}  a6 {[%clk 0:49:01]} 14. O-O {[%clk 0:39:43]}  O-O {[%clk 0:44:25]} 15. Ng5 {[%clk 0:38:17]}  g6 {[%clk 0:41:32]}
16. a3 {[%clk 0:27:14]}  Bg7 {[%clk 0:37:52]} 17. Nf3 {[%clk 0:20:23]}  Qc7 {[%clk 0:34:05]} 18. Rfe1 {[%clk 0:18:26]}  Nf4 {[%clk 0:32:17]}
19. Bxf4 {[%clk 0:18:29]}  Qxf4 {[%clk 0:32:37]} 20. Qc2 {[%clk 0:17:00]}  Qc7 {[%clk 0:24:00]} 21. Rbd1 {[%clk 0:14:20]}  Rd8 {[%clk 0:21:55]}
22. h3 {[%clk 0:11:43]}  b5 {[%clk 0:21:12]} 23. Nd2 {[%clk 0:11:30]}  e5 {[%clk 0:17:33]} 24. dxe5 {[%clk 0:09:32]}  Bxe5 {[%clk 0:17:23]}
25. Nf3 {[%clk 0:09:59]}  Bg7 {[%clk 0:16:45]} 26. Be4 {[%clk 0:10:01]}  Bb7 {[%clk 0:15:43]} 27. b4 {[%clk 0:07:07]}  Rxd1 {[%clk 0:11:43]}
28. Rxd1 {[%clk 0:07:24]}  Rd8 {[%clk 0:12:00]} 29. Rxd8+ {[%clk 0:05:50]}  Qxd8 {[%clk 0:12:26]} 30. c4 {[%clk 0:05:58]}  Qf6 {[%clk 0:11:02]}
31. cxb5 {[%clk 0:04:22]}  axb5 {[%clk 0:11:24]} 32. Qd3 {[%clk 0:02:18]}  Qe7 {[%clk 0:10:14]} 33. Nd4 {[%clk 0:01:32]}  Qd6 {[%clk 0:09:27]}
34. Nc2 {[%clk 0:01:16]}  Qxd3 {[%clk 0:08:59]} 35. Bxd3 {[%clk 0:01:42]}  Kf8 {[%clk 0:09:16]} 36. Kf1 {[%clk 0:02:08]}  Ke7 {[%clk 0:09:29]}
37. Ke2 {[%clk 0:02:20]}  Bc8 {[%clk 0:09:02]} 38. Be4 {[%clk 0:01:37]}  Kd6 {[%clk 0:09:20]} 39. Kd3 {[%clk 0:01:32]}  Bb2 {[%clk 0:08:49]}
40. Nd4 {[%clk 0:01:14]}  Bd7 {[%clk 0:08:45]} 41. Nc2 {[%clk 0:01:00]}  Ke5 {[%clk 0:07:01]} 42. g3 {[%clk 0:28:25]}  Bxh3 {[%clk 0:35:59]}
43. Bxc6 {[%clk 0:28:31]}  Bf1+ {[%clk 0:35:59]} 44. Kd2 {[%clk 0:26:56]}  Kd6 {[%clk 0:33:20]} 45. Be8 {[%clk 0:26:53]}  Ke7 {[%clk 0:33:34]}
46. Bc6 {[%clk 0:27:15]}  Bc4 {[%clk 0:33:21]} 47. a4 {[%clk 0:27:12]}  bxa4 {[%clk 0:30:27]} 48. Bxa4 {[%clk 0:27:38]}  Bd5 {[%clk 0:29:25]}
49. Ne3 {[%clk 0:27:32]}  Bf3 {[%clk 0:28:44]} 50. Bb3 {[%clk 0:27:12]}  h5 {[%clk 0:26:48]} 51. Bc4 {[%clk 0:25:45]}  f6 {[%clk 0:26:00]}
52. Nd5+ {[%clk 0:24:42]}  Bxd5 {[%clk 0:25:25]} 53. Bxd5 {[%clk 0:25:09]} 1/2-1/2

[Event "Irish Championship 2026"]
[Site "Talbot Hotel Stillorgan, Co.Dublin, IE"]
[Date "2026.08.02"]
[Round "2"]
[White "Lorigan, Maxim"]
[Black "Brozynski, Patryk"]
[Result "0-1"]
[Board "77"]
[TimeControl "40/5400+30:1800+30"]
[WhiteFideId "2518198"]
[BlackFideId "2512700"]
[WhiteElo "1762"]
[BlackElo "2224"]
[BlackTitle "CM"]
[WhiteClock "0:00:59"]
[BlackClock "0:04:42"]
[Variant "Standard"]
[EndDate "2026.08.02"]
[EndTime "17:34:30"]

1. d4 {[%clk 1:30:57]}  Nf6 {[%clk 1:28:00]} 2. c4 {[%clk 1:30:58]}  e6 {[%clk 1:25:32]} 3. Nc3 {[%clk 1:30:40]}  Bb4 {[%clk 1:25:35]}
4. e3 {[%clk 1:29:38]}  O-O {[%clk 1:25:26]} 5. Nf3 {[%clk 1:29:53]}  d5 {[%clk 1:21:55]} 6. Bd3 {[%clk 1:28:41]}  c5 {[%clk 1:17:55]}
7. a3 {[%clk 1:25:58]}  Bxc3+ {[%clk 1:16:28]} 8. bxc3 {[%clk 1:26:06]}  dxc4 {[%clk 1:16:06]} 9. Bxc4 {[%clk 1:25:44]}  Qc7 {[%clk 1:16:32]}
10. Be2 {[%clk 1:19:28]}  Rd8 {[%clk 1:10:43]} 11. O-O {[%clk 1:15:38]}  b6 {[%clk 1:10:06]} 12. Bb2 {[%clk 1:11:27]}  Bb7 {[%clk 1:07:31]}
13. Rc1 {[%clk 1:07:32]}  Nbd7 {[%clk 1:00:18]} 14. Nd2 {[%clk 0:59:46]}  Rac8 {[%clk 0:57:20]} 15. Bf3 {[%clk 0:56:27]}  e5 {[%clk 0:51:36]}
16. Bxb7 {[%clk 0:53:14]}  Qxb7 {[%clk 0:51:59]} 17. Qe2 {[%clk 0:51:39]}  Re8 {[%clk 0:35:57]} 18. Rfd1 {[%clk 0:46:36]}  b5 {[%clk 0:31:46]}
19. dxe5 {[%clk 0:36:41]}  Nxe5 {[%clk 0:31:16]} 20. c4 {[%clk 0:36:19]}  b4 {[%clk 0:30:55]} 21. Bxe5 {[%clk 0:35:09]}  Rxe5 {[%clk 0:31:18]}
22. Nf3 {[%clk 0:34:14]}  Rh5 {[%clk 0:23:02]} 23. Rd3 {[%clk 0:30:08]}  Qc7 {[%clk 0:19:27]} 24. Rcd1 {[%clk 0:19:05]}  g6 {[%clk 0:11:33]}
25. Qc2 {[%clk 0:17:02]}  Rf5 {[%clk 0:09:00]} 26. a4 {[%clk 0:14:02]}  Re8 {[%clk 0:08:25]} 27. Rd6 {[%clk 0:12:33]}  Ne4 {[%clk 0:07:33]}
28. Rd7 {[%clk 0:12:03]}  Qb6 {[%clk 0:07:48]} 29. R1d5 {[%clk 0:10:34]}  Rxd5 {[%clk 0:07:29]} 30. Rxd5 {[%clk 0:10:33]}  b3 {[%clk 0:07:13]}
31. Qb2 {[%clk 0:08:57]}  Qb4 {[%clk 0:07:35]} 32. Rd3 {[%clk 0:07:21]}  Rb8 {[%clk 0:07:38]} 33. Rd1 {[%clk 0:06:14]}  Nc3 {[%clk 0:07:14]}
34. Rd7 {[%clk 0:04:42]}  Qxa4 {[%clk 0:04:33]} 35. Rd3 {[%clk 0:01:47]}  Qxc4 {[%clk 0:04:09]} 36. Ne5 {[%clk 0:01:02]}  Ne2+ {[%clk 0:03:52]}
37. Qxe2 {[%clk 0:01:15]}  Qc1+ {[%clk 0:04:16]} 38. Rd1 {[%clk 0:00:59]}  b2 {[%clk 0:04:42]} 0-1

[Event "Irish Championship 2026"]
[Site "Talbot Hotel Stillorgan, Co.Dublin, IE"]
[Date "2026.08.02"]
[Round "2"]
[White "OBrien, James Joseph"]
[Black "Melaugh, Gavin"]
[Result "0-1"]
[Board "78"]
[TimeControl "40/5400+30:1800+30"]
[WhiteFideId "2518813"]
[BlackFideId "2509571"]
[WhiteElo "1914"]
[BlackElo "2093"]
[WhiteClock "0:01:23"]
[BlackClock "0:28:53"]
[Variant "Standard"]
[EndDate "2026.08.02"]
[EndTime "18:36:39"]

1. e4 {[%clk 1:30:57]}  Nf6 {[%clk 1:17:14]} 2. Nc3 {[%clk 1:30:39]}  d5 {[%clk 1:17:38]} 3. e5 {[%clk 1:30:45]}  Nfd7 {[%clk 1:18:03]}
4. d4 {[%clk 1:30:53]}  c5 {[%clk 1:18:28]} 5. Nxd5 {[%clk 1:21:56]}  e6 {[%clk 1:17:30]} 6. Nc3 {[%clk 1:17:09]}  cxd4 {[%clk 1:17:53]}
7. Qxd4 {[%clk 1:17:26]}  Nc6 {[%clk 1:18:06]} 8. Qd1 {[%clk 1:16:21]}  Ncxe5 {[%clk 1:15:29]} 9. Nf3 {[%clk 1:14:29]}  Qb6 {[%clk 1:04:21]}
10. Nxe5 {[%clk 1:07:22]}  Nxe5 {[%clk 1:04:19]} 11. Bb5+ {[%clk 1:07:44]}  Bd7 {[%clk 1:03:39]} 12. Be3 {[%clk 1:06:44]}  Qc7 {[%clk 0:58:36]}
13. Bxd7+ {[%clk 1:04:55]}  Nxd7 {[%clk 0:58:49]} 14. O-O {[%clk 1:01:24]}  a6 {[%clk 0:58:21]} 15. Qf3 {[%clk 0:50:27]}  Be7 {[%clk 0:58:31]}
16. Rad1 {[%clk 0:49:06]}  O-O {[%clk 0:56:48]} 17. Bf4 {[%clk 0:47:38]}  Qc8 {[%clk 0:57:12]} 18. Rfe1 {[%clk 0:46:34]}  Bb4 {[%clk 0:55:49]}
19. Re3 {[%clk 0:37:08]}  Nb6 {[%clk 0:45:48]} 20. a3 {[%clk 0:23:51]}  Be7 {[%clk 0:42:54]} 21. Ne4 {[%clk 0:18:00]}  Nd5 {[%clk 0:37:34]}
22. Re2 {[%clk 0:17:41]}  Qc6 {[%clk 0:36:03]} 23. Rd3 {[%clk 0:14:28]}  Rad8 {[%clk 0:35:24]} 24. Be5 {[%clk 0:10:57]}  f6 {[%clk 0:35:00]}
25. Bc3 {[%clk 0:10:53]}  e5 {[%clk 0:32:31]} 26. Nd2 {[%clk 0:07:31]}  Nf4 {[%clk 0:31:43]} 27. Rxd8 {[%clk 0:05:55]}  Nxe2+ {[%clk 0:31:22]}
28. Qxe2 {[%clk 0:06:21]}  Rxd8 {[%clk 0:31:43]} 29. f4 {[%clk 0:05:41]}  Bc5+ {[%clk 0:30:53]} 30. Kf1 {[%clk 0:05:55]}  exf4 {[%clk 0:31:00]}
31. Qc4+ {[%clk 0:05:19]}  Qd5 {[%clk 0:31:20]} 32. Qxf4 {[%clk 0:05:19]}  Bd6 {[%clk 0:29:45]} 33. Qg4 {[%clk 0:02:12]}  Bxh2 {[%clk 0:28:29]}
34. g3 {[%clk 0:00:37]}  Qh1+ {[%clk 0:28:50]} 35. Kf2 {[%clk 0:00:58]}  Qg1+ {[%clk 0:28:57]} 36. Ke2 {[%clk 0:01:19]}  Qg2+ {[%clk 0:28:29]}
37. Kd1 {[%clk 0:01:23]}  Qf1# {[%clk 0:28:53]} 0-1

[Event "Irish Championship 2026"]
[Site "Talbot Hotel Stillorgan, Co.Dublin, IE"]
[Date "2026.08.02"]
[Round "2"]
[White "Murray, Benjamin"]
[Black "Doolin, Nemhain"]
[Result "1-0"]
[Board "79"]
[TimeControl "40/5400+30:1800+30"]
[WhiteFideId "2512963"]
[BlackFideId "2517230"]
[WhiteElo "2080"]
[BlackElo "1915"]
[WhiteClock "0:06:18"]
[BlackClock "0:03:02"]
[Variant "Standard"]
[EndDate "2026.08.02"]
[EndTime "17:36:52"]

1. e4 {[%clk 1:27:36]}  e6 {[%clk 1:30:51]} 2. d4 {[%clk 1:27:35]}  d5 {[%clk 1:31:15]} 3. Nc3 {[%clk 1:27:59]}  Be7 {[%clk 1:31:36]}
4. Bd3 {[%clk 1:27:56]}  c5 {[%clk 1:31:47]} 5. dxc5 {[%clk 1:27:38]}  Nf6 {[%clk 1:31:00]} 6. exd5 {[%clk 1:25:37]}  exd5 {[%clk 1:26:19]}
7. Nf3 {[%clk 1:24:57]}  O-O {[%clk 1:25:48]} 8. Be3 {[%clk 1:20:01]}  Re8 {[%clk 1:23:29]} 9. O-O {[%clk 1:17:06]}  Nc6 {[%clk 1:21:25]}
10. h3 {[%clk 1:11:43]}  Be6 {[%clk 1:19:01]} 11. Bb5 {[%clk 1:05:15]}  Rc8 {[%clk 1:10:29]} 12. Qd3 {[%clk 0:51:45]}  Qd7 {[%clk 0:50:45]}
13. Rad1 {[%clk 0:36:37]}  Red8 {[%clk 0:42:57]} 14. Nd4 {[%clk 0:28:39]}  Qc7 {[%clk 0:36:19]} 15. Bxc6 {[%clk 0:24:45]}  bxc6 {[%clk 0:35:27]}
16. Rfe1 {[%clk 0:23:42]}  Nd7 {[%clk 0:28:14]} 17. b4 {[%clk 0:22:10]}  Qb7 {[%clk 0:21:40]} 18. Rb1 {[%clk 0:21:05]}  Re8 {[%clk 0:18:53]}
19. f4 {[%clk 0:20:06]}  Nf6 {[%clk 0:15:42]} 20. f5 {[%clk 0:15:05]}  Bd7 {[%clk 0:15:41]} 21. Bf4 {[%clk 0:14:08]}  Bf8 {[%clk 0:14:58]}
22. a3 {[%clk 0:13:49]}  Rcd8 {[%clk 0:10:20]} 23. g4 {[%clk 0:12:00]}  g6 {[%clk 0:07:21]} 24. Bg5 {[%clk 0:12:06]}  Bg7 {[%clk 0:07:22]}
25. Rf1 {[%clk 0:09:38]}  h6 {[%clk 0:06:57]} 26. Bxf6 {[%clk 0:09:08]}  Bxf6 {[%clk 0:07:20]} 27. fxg6 {[%clk 0:09:33]}  Bxd4+ {[%clk 0:07:31]}
28. Qxd4 {[%clk 0:09:58]}  fxg6 {[%clk 0:07:17]} 29. Qf6 {[%clk 0:10:24]}  Be6 {[%clk 0:06:38]} 30. Qxg6+ {[%clk 0:10:17]}  Qg7 {[%clk 0:06:52]}
31. Qxg7+ {[%clk 0:10:43]}  Kxg7 {[%clk 0:07:18]} 32. Rbe1 {[%clk 0:10:50]}  Bf7 {[%clk 0:06:12]} 33. Rxe8 {[%clk 0:09:54]}  Rxe8 {[%clk 0:06:37]}
34. Kf2 {[%clk 0:10:11]}  Bg6 {[%clk 0:06:56]} 35. Rc1 {[%clk 0:09:20]}  Kf6 {[%clk 0:06:35]} 36. Ne2 {[%clk 0:09:20]}  Kg5 {[%clk 0:06:39]}
37. Nd4 {[%clk 0:09:04]}  Rf8+ {[%clk 0:06:04]} 38. Kg3 {[%clk 0:09:14]}  Rc8 {[%clk 0:06:02]} 39. Rf1 {[%clk 0:09:16]}  Be4 {[%clk 0:05:47]}
40. Rf7 {[%clk 0:09:01]}  a5 {[%clk 0:05:19]} 41. Ra7 {[%clk 0:05:28]}  axb4 {[%clk 0:05:35]} 42. axb4 {[%clk 0:05:55]}  Rb8 {[%clk 0:02:48]}
43. Nxc6 {[%clk 0:06:07]}  Rb5 {[%clk 0:03:02]} 44. c3 {[%clk 0:06:18]} 1-0

[Event "Irish Championship 2026"]
[Site "Talbot Hotel Stillorgan, Co.Dublin, IE"]
[Date "2026.08.02"]
[Round "2"]
[White "Freeman, Gordon"]
[Black "Fitzgerald, Niall"]
[Result "1-0"]
[Board "80"]
[TimeControl "40/5400+30:1800+30"]
[WhiteFideId "2501309"]
[BlackFideId "2511185"]
[WhiteElo "2068"]
[BlackElo "1894"]
[WhiteTitle "FM"]
[WhiteClock "0:02:52"]
[BlackClock "0:01:00"]
[Variant "Standard"]
[EndDate "2026.08.02"]
[EndTime "17:35:04"]

1. d4 {[%clk 1:27:18]}  d5 {[%clk 1:30:57]} 2. Nf3 {[%clk 1:27:43]}  Nf6 {[%clk 1:31:21]} 3. Bg5 {[%clk 1:28:09]}  Ne4 {[%clk 1:31:43]}
4. Bf4 {[%clk 1:28:26]}  c5 {[%clk 1:32:05]} 5. e3 {[%clk 1:28:50]}  Qb6 {[%clk 1:31:31]} 6. Nc3 {[%clk 1:29:13]}  Qa5 {[%clk 1:30:55]}
7. Bb5+ {[%clk 1:29:36]}  Nc6 {[%clk 1:31:12]} 8. O-O {[%clk 1:29:58]}  Nxc3 {[%clk 1:31:14]} 9. Bxc6+ {[%clk 1:30:23]}  bxc6 {[%clk 1:31:40]}
10. bxc3 {[%clk 1:30:45]}  Qxc3 {[%clk 1:31:48]} 11. Ne5 {[%clk 1:31:05]}  cxd4 {[%clk 1:29:31]} 12. Rb1 {[%clk 1:30:59]}  Bf5 {[%clk 1:26:38]}
13. Rb3 {[%clk 1:28:25]}  Qxc2 {[%clk 1:19:57]} 14. Qxd4 {[%clk 1:28:24]}  f6 {[%clk 1:12:30]} 15. Qxa7 {[%clk 1:24:19]}  Rd8 {[%clk 0:49:48]}
16. Nf3 {[%clk 1:18:25]}  e5 {[%clk 0:44:48]} 17. Rb8 {[%clk 0:39:31]}  Qc5 {[%clk 0:24:36]} 18. Rxd8+ {[%clk 0:29:47]}  Kxd8 {[%clk 0:25:03]}
19. Qb8+ {[%clk 0:26:41]}  Bc8 {[%clk 0:22:28]} 20. Nxe5 {[%clk 0:17:30]}  fxe5 {[%clk 0:19:49]} 21. Qxe5 {[%clk 0:15:25]}  Qd6 {[%clk 0:06:56]}
22. Qxd6+ {[%clk 0:14:45]}  Bxd6 {[%clk 0:07:22]} 23. Bxd6 {[%clk 0:15:08]}  Ba6 {[%clk 0:07:18]} 24. Rb1 {[%clk 0:14:23]}  Kd7 {[%clk 0:07:16]}
25. Be5 {[%clk 0:13:13]}  Rg8 {[%clk 0:05:21]} 26. a4 {[%clk 0:11:28]}  Ke6 {[%clk 0:02:26]} 27. f4 {[%clk 0:11:21]}  Bc4 {[%clk 0:01:20]}
28. Rb6 {[%clk 0:08:17]}  Ra8 {[%clk 0:01:38]} 29. g4 {[%clk 0:05:04]}  Rxa4 {[%clk 0:01:24]} 30. Rxc6+ {[%clk 0:05:12]}  Kd7 {[%clk 0:00:57]}
31. Rc7+ {[%clk 0:05:00]}  Ke6 {[%clk 0:01:18]} 32. Rxg7 {[%clk 0:04:58]}  Bd3 {[%clk 0:01:16]} 33. Bd4 {[%clk 0:04:04]}  Ra2 {[%clk 0:00:37]}
34. f5+ {[%clk 0:03:58]}  Kd6 {[%clk 0:01:04]} 35. Rxh7 {[%clk 0:03:23]}  Be4 {[%clk 0:01:00]} 36. h3 {[%clk 0:02:52]} 1-0

[Event "Irish Championship 2026"]
[Site "Talbot Hotel Stillorgan, Co.Dublin, IE"]
[Date "2026.08.02"]
[Round "2"]
[White "Landmark, Gabriel"]
[Black "Fitzgerald, Martin"]
[Result "1-0"]
[Board "81"]
[TimeControl "40/5400+30:1800+30"]
[WhiteFideId "2524848"]
[BlackFideId "2511177"]
[WhiteElo "1999"]
[BlackElo "1891"]
[WhiteClock "0:49:25"]
[BlackClock "0:25:59"]
[Variant "Standard"]
[EndDate "2026.08.02"]
[EndTime "17:33:20"]

1. e4 {[%clk 1:30:58]}  c5 {[%clk 1:30:56]} 2. Nf3 {[%clk 1:31:23]}  Nc6 {[%clk 1:31:24]} 3. d4 {[%clk 1:31:45]}  cxd4 {[%clk 1:31:51]}
4. Nxd4 {[%clk 1:32:08]}  Nf6 {[%clk 1:32:18]} 5. Nc3 {[%clk 1:32:30]}  e5 {[%clk 1:32:44]} 6. Ndb5 {[%clk 1:32:57]}  d6 {[%clk 1:32:57]}
7. Bg5 {[%clk 1:33:22]}  a6 {[%clk 1:33:23]} 8. Na3 {[%clk 1:33:48]}  b5 {[%clk 1:33:50]} 9. Nd5 {[%clk 1:34:14]}  Be7 {[%clk 1:33:57]}
10. Bxf6 {[%clk 1:34:39]}  Bxf6 {[%clk 1:34:02]} 11. c4 {[%clk 1:35:03]}  b4 {[%clk 1:32:23]} 12. Nc2 {[%clk 1:35:29]}  Rb8 {[%clk 1:28:37]}
13. b3 {[%clk 1:33:54]}  O-O {[%clk 1:28:19]} 14. g3 {[%clk 1:32:04]}  Bg5 {[%clk 1:27:13]} 15. Bg2 {[%clk 1:30:20]}  Be6 {[%clk 1:19:45]}
16. O-O {[%clk 1:28:45]}  a5 {[%clk 1:14:16]} 17. f4 {[%clk 1:25:00]}  Bh6 {[%clk 1:03:14]} 18. f5 {[%clk 1:10:34]}  Bxd5 {[%clk 1:02:46]}
19. Qxd5 {[%clk 1:10:46]}  Nd4 {[%clk 1:02:09]} 20. Ne1 {[%clk 1:04:27]}  Rc8 {[%clk 0:41:51]} 21. f6 {[%clk 0:53:00]}  Qb6 {[%clk 0:37:20]}
22. fxg7 {[%clk 0:47:07]}  Bxg7 {[%clk 0:35:56]} 23. Nd3 {[%clk 0:45:37]}  Qa6 {[%clk 0:20:33]} 24. Rf2 {[%clk 0:36:03]}  Ne6 {[%clk 0:04:57]}
25. Bh3 {[%clk 0:33:39]}  Rce8 {[%clk 0:01:57]} 26. Nb2 {[%clk 0:25:11]}  Bh6 {[%clk 0:00:51]} 27. Re1 {[%clk 0:20:37]}  Nd4 {[%clk 0:00:52]}
28. Kg2 {[%clk 0:20:44]}  Qb6 {[%clk 0:00:36]} 29. Na4 {[%clk 0:20:14]}  Qc7 {[%clk 0:00:49]} 30. Ref1 {[%clk 0:20:14]}  Re7 {[%clk 0:00:40]}
31. Rf6 {[%clk 0:20:21]}  Bg7 {[%clk 0:00:39]} 32. Rxd6 {[%clk 0:20:22]}  Qa7 {[%clk 0:00:35]} 33. c5 {[%clk 0:20:28]}  Nc2 {[%clk 0:00:44]}
34. Qd3 {[%clk 0:19:31]}  Nd4 {[%clk 0:00:55]} 35. Rc1 {[%clk 0:19:09]}  Rc7 {[%clk 0:01:00]} 36. Ra6 {[%clk 0:19:08]}  Qb8 {[%clk 0:00:40]}
37. Nb6 {[%clk 0:18:09]}  Ra7 {[%clk 0:00:36]} 38. Nd7 {[%clk 0:18:15]}  Qb7 {[%clk 0:00:32]} 39. Rxa7 {[%clk 0:18:32]}  Qxa7 {[%clk 0:00:58]}
40. Nxf8 {[%clk 0:18:54]}  Bxf8 {[%clk 0:01:23]} 41. c6 {[%clk 0:18:27]}  Bd6 {[%clk 0:28:08]} 42. Qc4 {[%clk 0:48:02]}  Bc7 {[%clk 0:25:37]}
43. Rf1 {[%clk 0:48:25]}  Bb6 {[%clk 0:24:45]} 44. Bd7 {[%clk 0:48:41]}  Ne6 {[%clk 0:25:10]} 45. Bxe6 {[%clk 0:48:42]}  fxe6 {[%clk 0:25:36]}
46. Qxe6+ {[%clk 0:49:03]}  Kh8 {[%clk 0:25:59]} 47. Rf8+ {[%clk 0:49:25]} 1-0

[Event "Irish Championship 2026"]
[Site "Talbot Hotel Stillorgan, Co.Dublin, IE"]
[Date "2026.08.02"]
[Round "2"]
[White "Singhal, Vivaan"]
[Black "O'Connell, Gerard"]
[Result "0-1"]
[Board "82"]
[TimeControl "40/5400+30:1800+30"]
[WhiteFideId "2516721"]
[BlackFideId "2500493"]
[WhiteElo "1878"]
[BlackElo "1996"]
[WhiteClock "0:55:57"]
[BlackClock "0:55:15"]
[Variant "Standard"]
[EndDate "2026.08.02"]
[EndTime "18:37:51"]

1. d4 {[%clk 1:30:54]}  Nf6 {[%clk 1:30:49]} 2. Nf3 {[%clk 1:31:09]}  d5 {[%clk 1:30:57]} 3. e3 {[%clk 1:31:02]}  e6 {[%clk 1:30:59]}
4. Bd3 {[%clk 1:31:15]}  c5 {[%clk 1:31:02]} 5. b3 {[%clk 1:31:24]}  Nc6 {[%clk 1:30:55]} 6. Bb2 {[%clk 1:31:11]}  Be7 {[%clk 1:26:22]}
7. O-O {[%clk 1:30:40]}  Bd7 {[%clk 1:25:11]} 8. a3 {[%clk 1:29:27]}  O-O {[%clk 1:24:05]} 9. Nbd2 {[%clk 1:28:52]}  a6 {[%clk 1:18:20]}
10. Ne5 {[%clk 1:19:27]}  b5 {[%clk 1:06:28]} 11. dxc5 {[%clk 1:13:20]}  Nxe5 {[%clk 1:03:00]} 12. Bxe5 {[%clk 1:13:06]}  Bxc5 {[%clk 1:03:20]}
13. Nf3 {[%clk 1:08:11]}  Ne4 {[%clk 0:55:15]} 14. Bd4 {[%clk 0:55:57]} 0-1

[Event "Irish Championship 2026"]
[Site "Talbot Hotel Stillorgan, Co.Dublin, IE"]
[Date "2026.08.02"]
[Round "2"]
[White "Thomas Boby, Aiden"]
[Black "Liu, Murray"]
[Result "1/2-1/2"]
[Board "83"]
[TimeControl "40/5400+30:1800+30"]
[WhiteFideId "2535688"]
[BlackFideId "2517191"]
[WhiteElo "1978"]
[BlackElo "1885"]
[WhiteClock "0:32:19"]
[BlackClock "0:22:25"]
[Variant "Standard"]
[EndDate "2026.08.02"]
[EndTime "18:00:08"]

1. e4 {[%clk 1:30:46]}  c5 {[%clk 1:30:00]} 2. Nf3 {[%clk 1:30:59]}  d6 {[%clk 1:30:18]} 3. d4 {[%clk 1:31:20]}  cxd4 {[%clk 1:30:44]}
4. Nxd4 {[%clk 1:31:44]}  Nf6 {[%clk 1:31:05]} 5. Nc3 {[%clk 1:32:04]}  g6 {[%clk 1:31:27]} 6. Be3 {[%clk 1:32:28]}  Bg7 {[%clk 1:31:50]}
7. f3 {[%clk 1:32:49]}  O-O {[%clk 1:32:01]} 8. Qd2 {[%clk 1:33:07]}  Nc6 {[%clk 1:32:16]} 9. Bc4 {[%clk 1:33:32]}  Bd7 {[%clk 1:31:58]}
10. h4 {[%clk 1:33:50]}  h5 {[%clk 1:23:32]} 11. O-O-O {[%clk 1:26:46]}  Rc8 {[%clk 1:23:41]} 12. Bb3 {[%clk 1:26:41]}  Qa5 {[%clk 0:59:36]}
13. Kb1 {[%clk 1:25:19]}  Ne5 {[%clk 0:57:09]} 14. Bh6 {[%clk 1:13:28]}  Qc5 {[%clk 0:45:10]} 15. Bg5 {[%clk 1:00:05]}  Nc6 {[%clk 0:28:07]}
16. Be3 {[%clk 0:53:23]}  Qa5 {[%clk 0:23:44]} 17. Nxc6 {[%clk 0:49:28]}  Bxc6 {[%clk 0:22:28]} 18. Nd5 {[%clk 0:49:37]}  Qd8 {[%clk 0:22:32]}
19. Bd4 {[%clk 0:49:14]}  Bxd5 {[%clk 0:16:51]} 20. Bxd5 {[%clk 0:49:22]}  Nxd5 {[%clk 0:12:45]} 21. Bxg7 {[%clk 0:49:19]}  Kxg7 {[%clk 0:12:43]}
22. exd5 {[%clk 0:49:26]}  Rh8 {[%clk 0:09:02]} 23. g4 {[%clk 0:48:20]}  Qb6 {[%clk 0:07:46]} 24. Rde1 {[%clk 0:48:09]}  Rc7 {[%clk 0:06:58]}
25. Rhg1 {[%clk 0:42:30]}  Qc5 {[%clk 0:02:51]} 26. Rg2 {[%clk 0:39:37]}  hxg4 {[%clk 0:02:26]} 27. Rxg4 {[%clk 0:39:26]}  Rh5 {[%clk 0:02:48]}
28. Rd4 {[%clk 0:33:20]}  b5 {[%clk 0:02:17]} 29. Qd3 {[%clk 0:29:47]}  a5 {[%clk 0:01:55]} 30. Qd2 {[%clk 0:29:50]}  a4 {[%clk 0:01:31]}
31. Rd1 {[%clk 0:28:14]}  Kg8 {[%clk 0:01:14]} 32. a3 {[%clk 0:28:06]}  Kg7 {[%clk 0:01:31]} 33. c3 {[%clk 0:27:27]}  Rc8 {[%clk 0:01:28]}
34. Qe2 {[%clk 0:27:10]}  Rc7 {[%clk 0:01:39]} 35. Qe4 {[%clk 0:26:30]}  Re5 {[%clk 0:01:31]} 36. Qd3 {[%clk 0:25:57]}  Rh5 {[%clk 0:01:52]}
37. Re1 {[%clk 0:24:31]}  Kg8 {[%clk 0:01:59]} 38. Ree4 {[%clk 0:24:27]}  Kg7 {[%clk 0:01:14]} 39. Rg4 {[%clk 0:24:30]}  Rc8 {[%clk 0:01:20]}
40. f4 {[%clk 0:24:25]}  Rch8 {[%clk 0:00:33]} 41. f5 {[%clk 0:24:18]}  Qc8 {[%clk 0:00:31]} 42. fxg6 {[%clk 0:24:33]}  f6 {[%clk 0:30:18]}
43. Rde4 {[%clk 0:53:27]}  Qd7 {[%clk 0:30:25]} 44. Qe2 {[%clk 0:51:34]}  Re8 {[%clk 0:30:00]} 45. Re6 {[%clk 0:50:46]}  Rxd5 {[%clk 0:27:33]}
46. Rge4 {[%clk 0:50:06]}  Re5 {[%clk 0:27:43]} 47. R6xe5 {[%clk 0:50:27]}  dxe5 {[%clk 0:27:37]} 48. h5 {[%clk 0:33:56]}  Rh8 {[%clk 0:25:54]}
49. Rxe5 {[%clk 0:31:03]}  fxe5 {[%clk 0:22:25]} 50. Qxe5+ {[%clk 0:31:27]}  Kg8 {[%clk 0:22:34]} 51. Qb8+ {[%clk 0:31:53]}  Kg7 {[%clk 0:22:51]}
52. Qe5+ {[%clk 0:32:19]}  Kg8 {[%clk 0:22:25]} 1/2-1/2